bitfinex/quotes_BTCUSD_20250719
["timestamp","ask_amount","ask_price","bid_price","bid_amount"]
[1752960384093,0.03180735,117380.0,117370.0,0.18993833]
[1752960384690,0.03180721,117380.0,117370.0,0.20697765]
[1752960384937,0.03180721,117380.0,117370.0,0.20904765]
[1752960385907,0.04032647,117380.0,117370.0,0.20904765]
[1752960386350,0.0488458,117380.0,117370.0,0.20904765]
[1752960386589,0.03180721,117380.0,117370.0,0.20904765]
[1752960386800,0.21071331,117380.0,117370.0,0.2090478]
[1752960386990,0.21071331,117380.0,117370.0,0.21756698]
[1752960387406,0.03180721,117380.0,117370.0,0.21756698]
[1752960387557,0.04032647,117380.0,117370.0,0.21756698]
[1752960387924,0.02328802,117380.0,117370.0,0.21756698]
[1752960388096,0.03180721,117380.0,117370.0,0.21756698]
[1752960388969,0.04032647,117380.0,117370.0,0.20052781]
[1752960389197,0.04032647,117380.0,117370.0,0.20904743]
[1752960389410,0.04032647,117380.0,117370.0,0.20697743]
[1752960389615,0.4146855,117380.0,117370.0,0.00249721]
[1752960390262,0.5496055,117380.0,117370.0,0.00249721]
[1752960392256,0.001,117380.0,117370.0,0.43836]
[1752960392463,0.13592,117380.0,117370.0,0.45597085]
[1752960392667,0.13592,117380.0,117370.0,0.45290085]
[1752960395858,0.13588,117380.0,117370.0,0.45290085]
[1752960400858,0.13584,117380.0,117370.0,0.45290085]
[1752960401382,0.001,117380.0,117370.0,0.45290085]
[1752960401589,0.13584,117380.0,117370.0,0.45290085]
[1752960402201,0.001,117380.0,117370.0,0.45290085]
[1752960402536,0.13584,117380.0,117370.0,0.45290085]
[1752960403263,0.14112,117380.0,117370.0,0.00249721]
[1752960403460,0.80372255,117380.0,117370.0,0.00249721]
[1752960403892,0.56589036,117380.0,117370.0,0.00249721]
[1752960404328,0.56589036,117380.0,117370.0,0.00149721]
[1752960404707,0.56489036,117380.0,117370.0,0.00049721]
[1752960404923,0.80572255,117380.0,117370.0,0.00149721]
[1752960405500,0.65464998,117380.0,117370.0,0.00149721]
[1752960405716,0.56889036,117380.0,117370.0,0.00149721]
[1752960407758,1.14672255,117380.0,117370.0,0.00149721]
[1752960409966,1.14372255,117380.0,117370.0,0.00049721]
[1752960410173,1.14872255,117380.0,117370.0,0.00149721]
[1752960410377,1.14772255,117380.0,117370.0,0.00149721]
[1752960410599,1.09864217,117380.0,117370.0,0.00149721]
[1752960410819,0.72505036,117380.0,117370.0,0.00149721]
[1752960411047,0.90985036,117380.0,117370.0,0.00149721]
[1752960411267,0.91185036,117380.0,117370.0,0.00149721]
[1752960412313,0.91185479,117380.0,117370.0,0.00149721]
[1752960413294,0.18751398,117330.0,117320.0,0.17047298]
[1752960413488,0.21889026,117330.0,117320.0,0.19815318]
[1752960413702,0.16036744,117330.0,117320.0,0.44450906]
[1752960413899,0.16889026,117330.0,117320.0,0.44450906]
[1752960414106,0.16036744,117330.0,117320.0,0.44450906]
[1752960414329,0.16036744,117330.0,117320.0,0.44650906]
[1752960414501,0.16086678,117330.0,117320.0,0.44650906]
[1752960414709,0.16938953,117330.0,117320.0,0.44650906]
[1752960414904,0.16186678,117330.0,117320.0,0.21367687]
[1752960415184,0.00149934,117330.0,117320.0,0.24571772]
[1752960415371,0.13629934,117330.0,117320.0,0.93113019]
[1752960416550,0.13625934,117330.0,117320.0,0.93113019]
[1752960417618,0.00149934,117330.0,117320.0,0.93113019]
[1752960418045,0.13625934,117330.0,117320.0,0.93113019]
[1752960418752,0.13625934,117330.0,117320.0,0.95670119]
[1752960418996,0.14478165,117330.0,117320.0,0.81708006]
[1752960419216,0.17034938,117330.0,117320.0,0.81708006]
[1752960419726,0.1788722,117330.0,117320.0,0.81708006]
[1752960419931,0.02706663,117330.0,117320.0,0.81708006]
[1752960420360,0.01854403,117330.0,117320.0,0.81708006]
[1752960420574,0.01854403,117330.0,117320.0,0.95600119]
[1752960420575,0.13625934,117330.0,117320.0,0.95600119]
[1752960420818,0.23188823,117380.0,117370.0,0.18744119]
[1752960421029,0.44423543,117380.0,117370.0,0.44442285]
[1752960421212,0.27384646,117380.0,117370.0,0.45294247]
[1752960421494,0.27384646,117380.0,117370.0,0.45294196]
[1752960421495,0.26532713,117380.0,117370.0,0.45294196]
[1752960421715,0.26532713,117380.0,117370.0,0.20659022]
[1752960421716,0.30947323,117380.0,117370.0,0.20659022]
[1752960421932,0.4525648,117380.0,117370.0,0.20659022]
[1752960422149,0.26513944,117380.0,117370.0,0.2152588]
[1752960422358,0.26532706,117380.0,117370.0,0.2152588]
[1752960423000,0.21632706,117380.0,117370.0,0.2152588]
[1752960423215,0.44523309,117380.0,117370.0,0.19821963]
[1752960423450,0.43219522,117380.0,117370.0,0.19070022]
[1752960423690,0.43219522,117380.0,117370.0,0.18859022]
[1752960423908,0.44167603,117380.0,117370.0,0.18859037]
[1752960424392,0.44167603,117380.0,117370.0,0.19711028]
[1752960425321,0.39167603,117380.0,117370.0,0.19711028]
[1752960425543,0.44167603,117380.0,117370.0,0.19711028]
[1752960425765,0.44167603,117380.0,117370.0,0.20563012]
[1752960427382,0.44167603,117380.0,117370.0,0.21414974]
[1752960427616,0.44167603,117380.0,117370.0,0.21414989]
[1752960427854,0.45019507,117380.0,117370.0,0.21414945]
[1752960428114,0.13968,117380.0,117370.0,0.46863205]
[1752960428335,0.13968,117380.0,117370.0,0.48653205]
[1752960428563,0.13968,117380.0,117370.0,0.48960205]
[1752960429035,0.13868,117380.0,117370.0,0.48960205]
[1752960429270,0.004,117380.0,117370.0,0.48960205]
[1752960429501,0.13868,117380.0,117370.0,0.48960205]
[1752960429749,0.13868,117380.0,117370.0,0.51516505]
[1752960429980,0.13468,117380.0,117370.0,0.51109505]
[1752960430237,0.13568,117380.0,117370.0,0.51309505]
[1752960430680,0.001,117380.0,117370.0,0.51309505]
[1752960430914,0.13568,117380.0,117370.0,0.51309505]
[1752960431564,0.001,117380.0,117370.0,0.51309505]
[1752960431983,0.13568,117380.0,117370.0,0.51309505]
[1752960432891,0.13564,117380.0,117370.0,0.53446505]
[1752960433651,0.13564,117380.0,117370.0,0.51616505]
[1752960433884,0.001,117380.0,117370.0,0.51616505]
[1752960434107,0.13564,117380.0,117370.0,0.51616505]
[1752960435079,0.001,117380.0,117370.0,0.51616505]
[1752960435245,0.13564,117380.0,117370.0,0.51616505]
[1752960437256,0.001,117380.0,117370.0,0.51616505]
[1752960437477,0.1356,117380.0,117370.0,0.51616505]
[1752960439448,0.001,117380.0,117370.0,0.51616505]
[1752960439654,0.001,117380.0,117370.0,0.95997533]
[1752960440167,0.001,117380.0,117370.0,0.72214314]
[1752960440397,0.001,117380.0,117370.0,0.95997533]
[1752960441111,0.1346,117390.0,117380.0,0.5725439]
[1752960441318,0.1346,117390.0,117380.0,0.89801637]
[1752960441539,0.01686586,117410.0,117400.0,0.19591052]
[1752960441769,0.15142586,117410.0,117400.0,0.19804052]
[1752960442193,0.14499936,117410.0,117400.0,0.19804052]
[1752960442409,0.14290936,117410.0,117400.0,0.19804052]
[1752960443096,0.03407022,117400.0,117390.0,0.20443583]
[1752960443352,0.10446008,117400.0,117390.0,0.19591468]
[1752960443587,0.2957279,117400.0,117390.0,0.204433]
[1752960443787,0.09981723,117400.0,117390.0,0.2129511]
[1752960444058,0.00209,117400.0,117390.0,0.46745414]
[1752960444284,0.03700967,117410.0,117400.0,0.19591052]
[1752960444502,0.18217675,117410.0,117400.0,0.19591052]
[1752960444722,0.23217654,117410.0,117400.0,0.19591052]
[1752960445183,0.25047654,117410.0,117400.0,0.19591052]
[1752960445854,0.05739953,117410.0,117400.0,0.19591052]
[1752960446077,0.14590936,117410.0,117400.0,0.53692384]
[1752960446311,0.13756,117410.0,117400.0,0.55562384]
[1752960446534,0.1460765,117410.0,117400.0,0.47696856]
[1752960446777,0.13756,117410.0,117400.0,0.47696856]
[1752960446993,0.13456,117410.0,117400.0,0.47596856]
[1752960447210,0.18651038,117410.0,117400.0,0.228489]
[1752960447466,0.19502739,117410.0,117400.0,0.24552382]
[1752960447678,0.36537063,117410.0,117400.0,0.24552382]
[1752960447902,0.19502739,117410.0,117400.0,0.24652382]
[1752960448131,0.19502732,117410.0,117400.0,0.24652382]
[1752960448358,0.37388764,117410.0,117400.0,0.23800645]
[1752960448568,0.37388822,117410.0,117400.0,0.23800645]
[1752960448783,0.36537143,117410.0,117400.0,0.23800645]
[1752960449223,0.1502765,117410.0,117400.0,0.48648601]
[1752960449451,0.15568323,117410.0,117400.0,0.48648601]
[1752960449667,0.1471665,117410.0,117400.0,0.48648601]
[1752960449875,0.15568315,117410.0,117400.0,0.48648601]
[1752960450100,0.13656,117410.0,117400.0,0.48648601]
[1752960450336,0.13652,117410.0,117400.0,0.59362629]
[1752960450560,0.14503658,117410.0,117400.0,0.48648601]
[1752960451666,0.15355323,117410.0,117400.0,0.48648601]
[1752960452181,0.45972397,117410.0,117400.0,0.027555]
[1752960452395,0.55120732,117410.0,117400.0,0.002]
[1752960459306,0.41668732,117410.0,117400.0,0.17235775]
[1752960459522,0.23539038,117410.0,117400.0,0.18939315]
[1752960459736,0.23539038,117410.0,117400.0,0.19791052]
[1752960459940,0.24390746,117410.0,117400.0,0.19791052]
[1752960460092,0.18539038,117410.0,117400.0,0.19791052]
[1752960460300,0.23539038,117410.0,117400.0,0.19791052]
[1752960460529,0.23539038,117410.0,117400.0,0.20004052]
[1752960460530,0.0072,117410.0,117400.0,0.20004052]
[1752960460740,0.002,117410.0,117400.0,0.47384356]
[1752960460949,0.13644,117410.0,117400.0,0.85839856]
[1752960461160,0.002,117410.0,117400.0,0.94390884]
[1752960461371,0.1364,117410.0,117400.0,1.18174103]
[1752960461583,0.1364,117410.0,117400.0,0.94390884]
[1752960462662,0.1364,117410.0,117400.0,0.94290884]
[1752960462897,0.1364,117410.0,117400.0,0.94490884]
[1752960463350,0.002,117410.0,117400.0,0.94490884]
[1752960463574,0.00851578,117420.0,117410.0,0.21043469]
[1752960463779,0.14291578,117420.0,117410.0,0.45039688]
[1752960464012,0.01703337,117410.0,117400.0,0.5569483]
[1752960464226,0.26097734,117410.0,117400.0,0.17435775]
[1752960464454,0.27947734,117410.0,117400.0,0.002]
[1752960464703,0.01703496,117400.0,117390.0,0.58454485]
[1752960464920,0.15143489,117400.0,117390.0,0.82450704]
[1752960465137,0.01703489,117400.0,117390.0,0.82450704]
[1752960465377,0.03415206,117410.0,117400.0,0.21896889]
[1752960465593,0.16851199,117410.0,117400.0,0.45893108]
[1752960466050,0.177029,117410.0,117400.0,0.45893108]
[1752960466267,0.17702958,117410.0,117400.0,0.45893108]
[1752960466475,0.1685125,117410.0,117400.0,0.45893108]
[1752960466699,0.34405632,117410.0,117400.0,0.41883768]
[1752960466914,0.34405632,117410.0,117400.0,0.43587279]
[1752960467131,0.17571308,117410.0,117400.0,0.43687279]
[1752960467368,0.34605632,117410.0,117400.0,0.43687279]
[1752960467584,0.34605632,117410.0,117400.0,0.19904074]
[1752960467830,0.34605632,117410.0,117400.0,0.20755819]
[1752960468034,0.34605632,117410.0,117400.0,0.45390775]
[1752960468659,0.34605632,117410.0,117400.0,0.42835534]
[1752960468863,0.34605632,117410.0,117400.0,0.001]
[1752960468864,0.36522259,117410.0,117400.0,0.001]
[1752960469019,0.55073287,117410.0,117400.0,0.001]
[1752960475926,0.27372898,117410.0,117400.0,0.41967775]
[1752960476147,0.45786543,117410.0,117400.0,0.23883219]
[1752960476371,0.45786543,117410.0,117400.0,0.001]
[1752960478469,0.43866543,117410.0,117400.0,0.17135775]
[1752960478688,0.43866543,117410.0,117400.0,0.17987556]
[1752960478893,0.43014842,117410.0,117400.0,0.17987556]
[1752960479098,0.43014842,117410.0,117400.0,0.001]
[1752960479309,0.44934842,117410.0,117400.0,0.001]
[1752960479521,0.44934842,117410.0,117400.0,0.17135775]
[1752960479733,0.44934842,117410.0,117400.0,0.00951788]
[1752960479945,0.39934842,117410.0,117400.0,0.17987563]
[1752960480139,0.44718252,117410.0,117400.0,0.19691118]
[1752960480357,0.39718252,117410.0,117400.0,0.19691118]
[1752960480587,0.44718252,117410.0,117400.0,0.18839344]
[1752960481425,0.31286252,117410.0,117400.0,0.18839344]
[1752960481634,0.39714252,117410.0,117400.0,0.18839344]
[1752960481861,0.44714252,117410.0,117400.0,0.18839344]
[1752960482077,0.31286252,117410.0,117400.0,0.18839344]
[1752960482287,0.21191585,117410.0,117400.0,0.19888103]
[1752960482511,0.44077625,117410.0,117400.0,0.20739855]
[1752960482709,0.21191585,117410.0,117400.0,0.215916]
[1752960482913,0.26191585,117410.0,117400.0,0.21591549]
[1752960483353,0.20339884,117410.0,117400.0,0.21591549]
[1752960483562,0.21191585,117410.0,117400.0,0.21591549]
[1752960483784,0.43225909,117410.0,117400.0,0.19888067]
[1752960483991,0.43225909,117410.0,117400.0,0.20739812]
[1752960484199,0.43225909,117410.0,117400.0,0.21591549]
[1752960484465,0.38225909,117410.0,117400.0,0.20739812]
[1752960484679,0.43225909,117410.0,117400.0,0.20739812]
[1752960484895,0.20339884,117410.0,117400.0,0.21591549]
[1752960485119,0.07763585,117410.0,117400.0,0.21591549]
[1752960485337,0.13632518,117410.0,117400.0,0.49055853]
[1752960485548,0.14484168,117410.0,117400.0,0.49055853]
[1752960485795,0.13632518,117410.0,117400.0,0.49055853]
[1752960486641,0.00208518,117410.0,117400.0,0.49055853]
[1752960486939,0.14484168,117410.0,117400.0,0.49055853]
[1752960487592,0.15335826,117410.0,117400.0,0.48748853]
[1752960487810,0.16187491,117410.0,117400.0,0.48748853]
[1752960488656,0.16187491,117410.0,117400.0,0.001]
[1752960488657,0.33718887,117410.0,117400.0,0.001]
[1752960488875,0.37867222,117410.0,117400.0,0.17987563]
[1752960489100,0.38718938,117410.0,117400.0,0.44055324]
[1752960489310,0.38718938,117410.0,117400.0,0.43203587]
[1752960489516,0.38718938,117410.0,117400.0,0.44055361]
[1752960489778,0.38718938,117410.0,117400.0,0.4510412]
[1752960490649,0.38718938,117410.0,117400.0,0.45955872]
[1752960490874,0.38718938,117410.0,117400.0,0.4510412]
[1752960491695,0.38718938,117410.0,117400.0,0.45955872]
[1752960492554,0.38718938,117410.0,117400.0,0.20739877]
[1752960492764,0.38718938,117410.0,117400.0,0.4510412]
[1752960492975,0.38718938,117410.0,117400.0,0.45955872]
[1752960493175,0.38718938,117410.0,117400.0,0.4510412]
[1752960493397,0.38718938,117410.0,117400.0,0.45955872]
[1752960494165,0.38718938,117410.0,117400.0,0.45955829]
[1752960494716,0.38718938,117410.0,117400.0,0.45104084]
[1752960494915,0.37867259,117410.0,117400.0,0.44252339]
[1752960496106,0.37867259,117410.0,117400.0,0.45104098]
[1752960497185,0.36163842,117410.0,117400.0,0.42351806]
[1752960497388,0.37963842,117410.0,117400.0,0.42351806]
[1752960498058,0.37963842,117410.0,117400.0,0.43203587]
[1752960498757,0.37963842,117410.0,117400.0,0.42351806]
[1752960499186,0.37963842,117410.0,117400.0,0.17987563]
[1752960501188,0.37963842,117410.0,117400.0,0.00951788]
[1752960501400,0.39733842,117410.0,117400.0,0.001]
[1752960502074,0.39733842,117410.0,117400.0,0.17135775]
[1752960502298,0.39733842,117410.0,117400.0,0.17987563]
[1752960502521,0.37963842,117410.0,117400.0,0.18839344]
[1752960503408,0.37963842,117410.0,117400.0,0.44055361]
[1752960503850,0.37963842,117410.0,117400.0,0.44907127]
[1752960503851,0.38815558,117410.0,117400.0,0.44907127]
[1752960504073,0.39667252,117410.0,117400.0,0.45758879]
[1752960506278,0.39667208,117410.0,117400.0,0.45758879]
[1752960506500,0.00208518,117410.0,117400.0,1.0963312]
[1752960506742,0.13616518,117410.0,117400.0,1.0963312]
[1752960507200,0.13616518,117410.0,117400.0,0.85268877]
[1752960508771,0.00648843,117420.0,117410.0,0.0355]
[1752960509006,0.17518261,117470.0,117460.0,0.34]
[1752960509007,0.00484362,117470.0,117460.0,0.34]
[1752960509245,0.00484362,117470.0,117460.0,0.79598373]
[1752960509464,0.00618991,117470.0,117460.0,0.77292986]
[1752960509696,0.00618991,117470.0,117460.0,0.79598373]
[1752960509920,0.00089991,117470.0,117460.0,0.79598373]
[1752960510343,0.13493991,117470.0,117460.0,0.79598373]
[1752960511194,0.13793991,117470.0,117460.0,0.88556401]
[1752960511392,0.13493991,117470.0,117460.0,0.90196401]
[1752960511827,0.13493991,117470.0,117460.0,0.90296401]
[1752960511828,0.13593991,117470.0,117460.0,0.90296401]
[1752960512241,0.13593991,117470.0,117460.0,0.65932158]
[1752960512454,0.13593991,117470.0,117460.0,0.90296401]
[1752960512614,0.13593991,117470.0,117460.0,0.90396401]
[1752960512826,0.13589991,117470.0,117460.0,0.90396401]
[1752960513014,0.13489991,117470.0,117460.0,0.90296401]
[1752960514449,0.13589991,117470.0,117460.0,0.90396401]
[1752960514897,0.13589991,117470.0,117460.0,0.92151534]
[1752960515107,0.00189991,117470.0,117460.0,0.92151534]
[1752960515553,0.00189991,117470.0,117460.0,1.16515777]
[1752960515851,0.00189991,117470.0,117460.0,1.29911777]
[1752960516052,0.0004,117500.0,117490.0,0.55466046]
[1752960516301,0.00054987,117500.0,117490.0,1.03816317]
[1752960516492,0.00054987,117500.0,117490.0,1.04123317]
[1752960517064,0.00054987,117500.0,117490.0,1.03509002]
[1752960517868,0.00054987,117500.0,117490.0,0.79764207]
[1752960518132,0.00054987,117500.0,117490.0,0.90113002]
[1752960518364,0.00054987,117500.0,117490.0,1.05761732]
[1752960518569,0.00054987,117500.0,117490.0,1.03505002]
[1752960518766,0.00054987,117500.0,117490.0,1.03705002]
[1752960518994,0.00154987,117500.0,117490.0,1.03905002]
[1752960520853,0.00359987,117500.0,117490.0,0.86476002]
[1752960521068,0.36479353,117500.0,117490.0,0.00405133]
[1752960521290,0.36479353,117500.0,117490.0,0.1998123]
[1752960521503,0.15774019,117500.0,117490.0,0.4457711]
[1752960521712,0.16625061,117500.0,117490.0,0.4477611]
[1752960521917,0.15674019,117500.0,117490.0,0.4437611]
[1752960522128,0.37226395,117500.0,117490.0,0.43526039]
[1752960522340,0.20205119,117500.0,117490.0,0.45228231]
[1752960522552,0.20205105,117500.0,117490.0,0.21483436]
[1752960522764,0.20305105,117500.0,117490.0,0.21583436]
[1752960522909,0.37226381,117500.0,117490.0,0.20432351]
[1752960523126,0.37226381,117500.0,117490.0,0.19581244]
[1752960523341,0.37326381,117500.0,117490.0,0.20432351]
[1752960524419,0.20305105,117500.0,117490.0,0.21283436]
[1752960524622,0.18475105,117500.0,117490.0,0.45028231]
[1752960524828,0.18475105,117500.0,117490.0,0.21283436]
[1752960525040,0.17624019,117500.0,117490.0,0.45028231]
[1752960525692,0.18475053,117500.0,117490.0,0.45028231]
[1752960525926,0.14071987,117500.0,117490.0,0.45227231]
[1752960526144,0.13538987,117500.0,117490.0,0.46988316]
[1752960526571,0.13538987,117500.0,117490.0,0.48888316]
[1752960527612,0.13538987,117500.0,117490.0,0.46988316]
[1752960528048,0.24038344,117500.0,117490.0,5.133e-05]
[1752960528277,0.41738367,117500.0,117490.0,5.133e-05]
[1752960528941,0.16166019,117500.0,117490.0,0.40772653]
[1752960529123,0.21808992,117500.0,117490.0,0.43325974]
[1752960529571,0.00154987,117500.0,117490.0,0.89737087]
[1752960529776,0.00154987,117500.0,117490.0,0.91547087]
[1752960530789,0.00154987,117500.0,117490.0,1.04931087]
[1752960532220,0.00054987,117500.0,117490.0,1.04931087]
[1752960532647,0.00154987,117500.0,117490.0,1.05431087]
[1752960533068,0.00154987,117500.0,117490.0,1.07895375]
[1752960533186,0.00154987,117500.0,117490.0,1.05431087]
[1752960535318,0.00154987,117500.0,117490.0,1.29175882]
[1752960535743,1e-08,117500.0,117490.0,1.29175882]
[1752960536179,1e-08,117500.0,117490.0,1.07895375]
[1752960536347,1e-08,117500.0,117490.0,1.29175882]
[1752960538284,1e-08,117500.0,117490.0,1.9641857]
[1752960538510,1e-08,117500.0,117490.0,1.9867536]
[1752960538918,1e-08,117500.0,117490.0,1.01852002]
[1752960539135,1e-08,117500.0,117490.0,1.05409087]
[1752960539525,1e-08,117500.0,117490.0,1.77213587]
[1752960540297,1e-08,117500.0,117490.0,1.79766887]
[1752960540723,1e-08,117500.0,117490.0,2.03511682]
[1752960542225,1e-08,117500.0,117490.0,2.04356859]
[1752960543565,0.0004,117530.0,117520.0,0.55025133]
[1752960543770,0.0004,117530.0,117520.0,0.87531956]
[1752960544206,0.0004,117530.0,117520.0,0.90084556]
[1752960544431,0.0004,117530.0,117520.0,1.65087256]
[1752960544644,1e-08,117530.0,117520.0,1.65092389]
[1752960545564,1e-08,117530.0,117520.0,1.67675158]
[1752960545780,1e-08,117530.0,117520.0,1.67975158]
[1752960545968,0.00500001,117530.0,117520.0,1.67975158]
[1752960546229,1e-08,117530.0,117520.0,1.67975158]
[1752960547095,1e-08,117530.0,117520.0,1.44230363]
[1752960547315,0.0004,117550.0,117540.0,0.53567718]
[1752960547542,0.0004,117550.0,117540.0,1.5872425]
[1752960547753,0.00054979,117550.0,117540.0,1.5901725]
[1752960547964,0.00054979,117550.0,117540.0,1.59022383]
[1752960548243,1e-08,117550.0,117540.0,1.84637178]
[1752960548449,1e-08,117550.0,117540.0,5.12122178]
[1752960548664,1e-08,117550.0,117540.0,1.91432578]
[1752960548869,1e-08,117550.0,117540.0,1.62766283]
[1752960549074,1e-08,117550.0,117540.0,1.54663283]
[1752960549280,1e-08,117550.0,117540.0,1.54563283]
[1752960549494,0.00300001,117550.0,117540.0,1.54563283]
[1752960549706,0.00300001,117550.0,117540.0,1.67949683]
[1752960549906,1e-08,117550.0,117540.0,1.68204783]
[1752960550120,0.00100001,117550.0,117540.0,1.68204783]
[1752960550370,1e-08,117550.0,117540.0,1.81709383]
[1752960550593,0.0191,117580.0,117540.0,3.48523878]
[1752960550800,0.02247,117590.0,117580.0,0.55015146]
[1752960551006,0.0249491,117590.0,117580.0,0.55015146]
[1752960551242,0.0437491,117590.0,117580.0,0.53566194]
[1752960551459,0.2274291,117590.0,117580.0,0.53566194]
[1752960552753,0.23593257,117590.0,117580.0,0.53566194]
[1752960553000,0.23593264,117590.0,117580.0,0.53566194]
[1752960553194,0.2274291,117590.0,117580.0,0.53566194]
[1752960553407,0.2304291,117590.0,117580.0,0.53566194]
[1752960553824,0.0279491,117590.0,117580.0,0.87316102]
[1752960554273,0.1415191,117590.0,117580.0,0.87527102]
[1752960554696,0.1395191,117590.0,117580.0,0.87527102]
[1752960555557,0.1375191,117590.0,117580.0,0.87527102]
[1752960555976,0.1395191,117590.0,117580.0,0.87527102]
[1752960556794,0.0273491,117590.0,117580.0,0.87316102]
[1752960556998,0.1609891,117590.0,117580.0,0.87316102]
[1752960558178,0.1609891,117590.0,117580.0,0.63571307]
[1752960558391,0.0243791,117590.0,117580.0,0.87316102]
[1752960558598,0.0038991,117590.0,117580.0,0.87527102]
[1752960558805,0.0038991,117590.0,117580.0,0.92151302]
[1752960559028,0.0038991,117590.0,117580.0,0.90371302]
[1752960559438,0.0038991,117590.0,117580.0,0.66626507]
[1752960559663,0.0008991,117590.0,117580.0,1.87318002]
[1752960559868,0.0008991,117590.0,117580.0,1.51149202]
[1752960560080,0.0008991,117590.0,117580.0,1.32285202]
[1752960560295,0.1344991,117590.0,117580.0,1.28178902]
[1752960560502,0.1344991,117590.0,117580.0,1.23216802]
[1752960560503,0.0008991,117590.0,117580.0,1.23216802]
[1752960560954,0.1344991,117590.0,117580.0,1.23216802]
[1752960561161,0.1344991,117590.0,117580.0,1.08919202]
[1752960561365,0.0008991,117590.0,117580.0,1.10809202]
[1752960561578,0.0004,117620.0,117610.0,0.53556071]
[1752960561790,0.0004,117620.0,117610.0,0.86057894]
[1752960561791,0.0005497,117620.0,117610.0,0.86057894]
[1752960562000,0.1341497,117620.0,117610.0,0.86057894]
[1752960562248,0.1341497,117620.0,117610.0,0.86063027]
[1752960562652,0.1341497,117620.0,117610.0,0.88613727]
[1752960563053,0.0005497,117620.0,117610.0,0.88613727]
[1752960563260,0.1341497,117620.0,117610.0,0.88613727]
[1752960563466,0.1341497,117620.0,117610.0,0.54411449]
[1752960563467,0.20446447,117620.0,117610.0,0.54411449]
[1752960563757,0.21296642,117620.0,117610.0,0.55015303]
[1752960563962,0.21096635,117620.0,117610.0,0.55865527]
[1752960564169,0.3895074,117620.0,117610.0,0.55115303]
[1752960564424,0.20246439,117620.0,117610.0,0.80560539]
[1752960564778,0.20246439,117620.0,117610.0,0.56815744]
[1752960564779,0.21096627,117620.0,117610.0,0.56815744]
[1752960564986,0.21096627,117620.0,117610.0,0.80560539]
[1752960565186,0.21296627,117620.0,117610.0,0.80560539]
[1752960565397,0.05386107,117620.0,117610.0,0.80460539]
[1752960565601,0.20442417,117620.0,117610.0,0.56715744]
[1752960565842,0.07386417,117620.0,117610.0,0.80460539]
[1752960566258,0.19892251,117620.0,117610.0,0.80460539]
[1752960566465,0.21592598,117620.0,117610.0,0.56715744]
[1752960566679,0.20742417,117620.0,117610.0,0.80460539]
[1752960566883,0.21592598,117620.0,117610.0,0.80460539]
[1752960567085,0.2074241,117620.0,117610.0,0.80460539]
[1752960567965,0.19892251,117620.0,117610.0,0.80460539]
[1752960568373,0.41896183,117620.0,117610.0,0.34005133]
[1752960568611,0.41896227,117620.0,117610.0,0.34005133]
[1752960568821,0.41896227,117620.0,117610.0,0.52711016]
[1752960569032,0.41046061,117620.0,117610.0,0.52711016]
[1752960569242,0.40846061,117620.0,117610.0,0.53561269]
[1752960569645,0.40546061,117620.0,117610.0,0.53561269]
[1752960569879,0.41046061,117620.0,117610.0,0.54411515]
[1752960570080,0.41046061,117620.0,117610.0,0.34005133]
[1752960570282,0.49897089,117620.0,117610.0,5.133e-05]
[1752960570493,0.55682663,117620.0,117610.0,5.133e-05]
[1752960573601,0.55684173,117620.0,117610.0,5.133e-05]
[1752960573808,0.06773198,117620.0,117610.0,0.43305999]
[1752960574040,0.47983304,117620.0,117610.0,5.133e-05]
[1752960574864,0.47983887,117620.0,117610.0,5.133e-05]
[1752960575410,0.47483887,117620.0,117610.0,5.133e-05]
[1752960575622,0.05623637,117620.0,117610.0,0.40755284]
[1752960575828,0.19525767,117620.0,117610.0,0.43305999]
[1752960576033,0.20175911,117620.0,117610.0,0.43305999]
[1752960576250,0.19825774,117620.0,117610.0,0.43305999]
[1752960576460,0.05623637,117620.0,117610.0,0.43305999]
[1752960576662,0.19825774,117620.0,117610.0,0.43305999]
[1752960576860,0.21526063,117620.0,117610.0,0.43305999]
[1752960577064,0.21126056,117620.0,117610.0,0.43305999]
[1752960577302,0.20275904,117620.0,117610.0,0.43305999]
[1752960577502,0.21126056,117620.0,117610.0,0.43305999]
[1752960577714,0.18575637,117620.0,117610.0,0.19561204]
[1752960577925,0.00942637,117620.0,117610.0,0.78966084]
[1752960578134,0.00943723,117620.0,117610.0,0.91397112]
[1752960578360,0.00943723,117620.0,117610.0,0.93947812]
[1752960578573,0.14495723,117620.0,117610.0,0.93947812]
[1752960578984,0.1370697,117620.0,117610.0,0.93947812]
[1752960579186,0.0005497,117620.0,117610.0,0.93947812]
[1752960579388,0.1340697,117620.0,117610.0,0.94047812]
[1752960579609,0.1340697,117620.0,117610.0,0.94147812]
[1752960580046,0.04104,117650.0,117640.0,0.19551085]
[1752960580265,0.03229989,117650.0,117640.0,0.4329588]
[1752960580476,0.16581989,117650.0,117640.0,0.4329588]
[1752960580695,0.16582002,117650.0,117640.0,0.4329588]
[1752960581106,0.03230002,117650.0,117640.0,0.43301013]
[1752960581344,0.16582002,117650.0,117640.0,0.19556218]
[1752960581571,0.03230002,117650.0,117640.0,0.43301013]
[1752960581982,0.16582002,117650.0,117640.0,0.43301013]
[1752960582182,0.1673985,117650.0,117640.0,0.19556218]
[1752960582399,0.31791756,117650.0,117640.0,0.19556218]
[1752960582609,0.32637727,117650.0,117640.0,0.19556218]
[1752960582837,0.15889966,117650.0,117640.0,0.17856196]
[1752960583041,0.30937828,117650.0,117640.0,0.19556218]
[1752960583246,0.47937403,117650.0,117640.0,0.17856196]
[1752960583492,0.48037188,117650.0,117640.0,0.18706232]
[1752960583692,0.47187268,117650.0,117640.0,0.19556254]
[1752960583898,0.47087268,117650.0,117640.0,0.19556254]
[1752960584116,0.46237326,117650.0,117640.0,0.17006153]
[1752960584335,0.5413839,117650.0,117640.0,5.133e-05]
[1752960584987,0.4089039,117650.0,117640.0,5.133e-05]
[1752960585192,0.5423839,117650.0,117640.0,5.133e-05]
[1752960585404,0.5413839,117650.0,117640.0,5.133e-05]
[1752960585614,0.5443839,117650.0,117640.0,5.133e-05]
[1752960585815,0.4109039,117650.0,117640.0,5.133e-05]
[1752960586042,0.5443839,117650.0,117640.0,5.133e-05]
[1752960587165,0.14379715,117650.0,117640.0,0.43301013]
[1752960587392,0.01128787,117650.0,117640.0,0.43507013]
[1752960587600,0.21777635,117650.0,117640.0,0.43507013]
[1752960587842,0.3910121,117650.0,117640.0,0.17856196]
[1752960588060,0.47571268,117650.0,117640.0,5.133e-05]
[1752960588278,0.47271268,117650.0,117640.0,5.133e-05]
[1752960588486,0.47671268,117650.0,117640.0,0.00105133]
[1752960588710,0.46971268,117650.0,117640.0,5.133e-05]
[1752960588915,0.47171268,117650.0,117640.0,5.133e-05]
[1752960589133,0.55822296,117650.0,117640.0,5.133e-05]
[1752960589352,0.5582274,117650.0,117640.0,5.133e-05]
[1752960589564,0.5562274,117650.0,117640.0,5.133e-05]
[1752960590496,0.20736144,117650.0,117640.0,0.19770218]
[1752960590703,0.27436073,117650.0,117640.0,0.19770218]
[1752960590909,0.47875619,117650.0,117640.0,0.17006153]